bitfinex/quotes_BTCUSD_20260125
["timestamp","ask_amount","ask_price","bid_price","bid_amount"]
[1769376477434,0.05754049,86896.0,86887.0,0.18357341]
[1769376477650,0.01150787,86897.0,86887.0,0.18341624]
[1769376477651,0.01150827,86894.0,86887.0,0.18341624]
[1769376477854,0.0115084,86893.0,86887.0,0.18341624]
[1769376478671,0.05754112,86895.0,86887.0,0.18341624]
[1769376478672,0.01150814,86895.0,86887.0,0.18341624]
[1769376479278,0.01150827,86894.0,86887.0,0.18341624]
[1769376479522,0.01150827,86894.0,86887.0,0.18325908]
[1769376479726,0.501185,86893.0,86887.0,0.18325908]
[1769376480265,0.01150853,86892.0,86880.0,0.34717328]
[1769376480476,0.01150853,86892.0,86877.0,0.00010329]
[1769376480477,0.01150973,86883.0,86877.0,0.00010329]
[1769376480882,0.06905701,86885.0,86870.0,0.18357341]
[1769376480883,0.05755382,86876.0,86870.0,0.18357341]
[1769376481085,0.01151052,86877.0,86870.0,0.00014168]
[1769376482138,0.01151065,86876.0,86870.0,0.00014168]
[1769376482741,0.01151079,86875.0,86870.0,0.00014168]
[1769376483364,0.01151092,86874.0,86870.0,0.00014168]
[1769376483541,0.01151079,86875.0,86870.0,0.00014168]
[1769376483740,0.01151092,86874.0,86870.0,0.00014168]
[1769376483952,0.01151092,86874.0,86865.0,0.18375671]
[1769376484174,8.697e-05,86874.0,86865.0,0.18375671]
[1769376484536,0.01151039,86878.0,86865.0,0.18375671]
[1769376484713,0.01151052,86877.0,86865.0,0.18422952]
[1769376485340,0.01151065,86876.0,86865.0,0.18422952]
[1769376485749,0.01151052,86877.0,86865.0,0.18422952]
[1769376486215,0.01151039,86878.0,86865.0,0.18422952]
[1769376487051,0.01151052,86877.0,86865.0,0.18422952]
[1769376487493,0.01151039,86878.0,86865.0,0.18422952]
[1769376487922,0.01151012,86880.0,86866.0,0.16753606]
[1769376488138,0.01151012,86880.0,86868.0,0.16753606]
[1769376488792,0.01151039,86878.0,86868.0,0.16753606]
[1769376489409,0.01151012,86880.0,86868.0,0.16753606]
[1769376489623,0.01151026,86879.0,86868.0,0.16753606]
[1769376490990,0.23019088,86885.0,86865.0,0.00065611]
[1769376490991,0.01150933,86886.0,86872.0,1.06086294]
[1769376491236,0.01150893,86889.0,86873.0,0.16753606]
[1769376491237,0.01150906,86888.0,86873.0,0.16753606]
[1769376491847,0.0115092,86887.0,86873.0,0.16753606]
[1769376492042,0.01150906,86888.0,86873.0,0.16753606]
[1769376492257,0.01150893,86889.0,86875.0,0.16753606]
[1769376492444,0.01150893,86889.0,86877.0,0.16753606]
[1769376492859,0.06905444,86888.0,86877.0,0.16753606]
[1769376493041,0.01150933,86886.0,86877.0,0.16753606]
[1769376493239,0.01150906,86888.0,86877.0,0.16753606]
[1769376493440,0.1768,86890.0,86877.0,0.16753606]
[1769376494180,0.1883088,86890.0,86877.0,0.16753606]
[1769376494404,0.01150893,86889.0,86877.0,0.16753606]
[1769376494949,0.1883088,86890.0,86870.0,0.01151145]
[1769376494950,0.1768,86890.0,86878.0,1.06086294]
[1769376495150,0.1768,86890.0,86879.0,0.16753606]
[1769376495423,0.01150867,86891.0,86879.0,0.16753606]
[1769376495898,0.0115088,86890.0,86879.0,0.16753606]
[1769376496121,0.01150906,86888.0,86879.0,0.16753606]
[1769376496322,0.0115092,86887.0,86879.0,0.16753606]
[1769376496479,0.01150906,86888.0,86879.0,0.16753606]
[1769376496688,0.01150933,86886.0,86879.0,0.16753606]
[1769376497016,0.0115092,86887.0,86879.0,0.16753606]
[1769376497216,0.01150933,86886.0,86879.0,0.16753606]
[1769376497626,0.501185,86893.0,86880.0,1.06961374]
[1769376497851,0.01150853,86892.0,86881.0,0.16390593]
[1769376499346,0.0115088,86890.0,86881.0,0.16390593]
[1769376499526,0.01150893,86889.0,86881.0,0.16390593]
[1769376500376,0.0115088,86890.0,86881.0,0.16390593]
[1769376500739,0.01150867,86891.0,86881.0,0.16390593]
[1769376501114,0.13205293,86893.0,86881.0,0.16390593]
[1769376501328,0.05754328,86892.0,86881.0,0.16390593]
[1769376501563,0.01150867,86891.0,86881.0,0.16390593]
[1769376502573,0.0115084,86893.0,86881.0,0.16390593]
[1769376502777,0.01150867,86891.0,86881.0,0.16390593]
[1769376502978,0.0115088,86890.0,86881.0,0.16390593]
[1769376503205,0.01150893,86889.0,86881.0,0.16390593]
[1769376504339,0.01150893,86889.0,86872.0,1.06961374]
[1769376504340,0.0115084,86893.0,86883.0,0.16390593]
[1769376504647,0.01150774,86898.0,86883.0,0.16390593]
[1769376504853,0.01150774,86898.0,86874.0,0.01151092]
[1769376504854,0.011508,86896.0,86885.0,0.16390593]
[1769376505029,0.01150814,86895.0,86885.0,0.16390593]
[1769376505237,0.0115084,86893.0,86885.0,0.16390593]
[1769376505434,0.01150827,86894.0,86885.0,0.16390593]
[1769376505581,0.01150867,86891.0,86885.0,0.16390593]
[1769376506984,0.01150893,86889.0,86885.0,0.16390593]
[1769376507115,0.0115088,86890.0,86885.0,0.16390593]
[1769376507323,0.01150893,86889.0,86885.0,0.16390593]
[1769376507727,0.0115088,86890.0,86885.0,0.16390593]
[1769376508090,0.0115088,86890.0,86885.0,0.1637488]
[1769376508373,0.01150867,86891.0,86885.0,0.1637488]
[1769376508931,0.01150814,86895.0,86885.0,0.16359169]
[1769376509143,0.0115084,86893.0,86885.0,0.16359169]
[1769376509349,0.01150853,86892.0,86885.0,0.16359169]
[1769376510321,0.0115088,86890.0,86885.0,0.16359169]
[1769376511083,0.01150853,86892.0,86885.0,0.16359169]
[1769376511290,0.0115084,86893.0,86885.0,0.16359169]
[1769376512063,0.01150827,86894.0,86885.0,0.16359169]
[1769376512251,0.01150814,86895.0,86885.0,0.16359169]
[1769376512471,0.06784481,86897.0,86885.0,0.16359169]
[1769376512846,0.07935268,86897.0,86885.0,0.16359169]
[1769376513357,0.01150814,86895.0,86885.0,0.16359169]
[1769376513759,0.01150827,86894.0,86885.0,0.16359169]
[1769376514306,0.0115084,86893.0,86885.0,0.16359169]
[1769376514502,0.01150853,86892.0,86885.0,0.16359169]
[1769376514760,0.0115084,86893.0,86885.0,0.16359169]
[1769376515170,0.01150853,86892.0,86885.0,0.16359169]
[1769376515424,0.01150867,86891.0,86885.0,0.16359169]
[1769376515585,0.0115088,86890.0,86885.0,0.16359169]
[1769376515786,0.01150867,86891.0,86885.0,0.16359169]
[1769376516892,0.0115088,86890.0,86885.0,0.16359169]
[1769376517301,0.0690501,86894.0,86885.0,0.16359169]
[1769376517302,0.01150827,86894.0,86885.0,0.16359169]
[1769376518286,0.0115084,86893.0,86885.0,0.16359169]
[1769376518490,0.01150827,86894.0,86885.0,0.16359169]
[1769376519209,0.06784481,86897.0,86885.0,0.16359169]
[1769376519413,0.01150655,86907.0,86889.0,1.05682656]
[1769376519759,0.0001503,86914.0,86873.0,0.0001788]
[1769376519760,0.01150615,86910.0,86894.0,0.16759721]
[1769376519879,0.01150615,86910.0,86890.0,0.34717328]
[1769376519880,0.01150615,86910.0,86898.0,0.16759721]
[1769376520078,0.01150642,86908.0,86900.0,1.05682656]
[1769376520327,0.01150642,86908.0,86901.0,0.00828683]
[1769376520930,0.0002469,86905.0,86901.0,0.00828683]
[1769376521132,0.40690904,86916.0,86901.0,0.00828683]
[1769376521133,0.01150549,86915.0,86901.0,0.00828683]
[1769376521333,0.01150549,86915.0,86902.0,1.22442377]
[1769376521334,0.01150575,86913.0,86902.0,1.22442377]
[1769376521541,0.01150575,86913.0,86902.0,1.22454887]
[1769376522309,0.01150602,86911.0,86902.0,1.22454887]
[1769376522505,0.01150589,86912.0,86902.0,1.22454887]
[1769376522715,0.01150602,86911.0,86902.0,1.22454887]
[1769376522936,0.01150575,86913.0,86902.0,1.22454887]
[1769376523650,0.01150589,86912.0,86902.0,1.22454887]
[1769376523858,0.01150575,86913.0,86902.0,1.22454887]
[1769376524810,0.01150589,86912.0,86902.0,1.22454887]
[1769376525016,0.01150602,86911.0,86902.0,1.22454887]
[1769376525449,0.01150575,86913.0,86902.0,1.22454887]
[1769376525702,0.01150589,86912.0,86902.0,1.22454887]
[1769376526268,0.01150575,86913.0,86902.0,1.22454887]
[1769376526505,0.01150589,86912.0,86902.0,1.22454887]
[1769376526628,0.01150615,86910.0,86902.0,0.16772231]
[1769376526828,0.01150602,86911.0,86902.0,0.16772231]
[1769376527186,0.01150589,86912.0,86902.0,0.16772231]
[1769376528122,0.01150575,86913.0,86902.0,0.16772231]
[1769376529061,0.0001503,86914.0,86903.0,1.05682656]
[1769376530730,0.0001503,86914.0,86903.0,1.22442377]
[1769376531783,0.0001503,86914.0,86904.0,0.16759721]
[1769376532145,0.0001503,86914.0,86905.0,0.16759721]
[1769376534538,0.05752151,86924.0,86905.0,0.16759721]
[1769376534812,0.0461903,86950.0,86902.0,0.0001251]
[1769376534813,0.05751102,86940.0,86924.0,1.05682656]
[1769376534988,0.05751102,86940.0,86906.0,0.17676]
[1769376534989,0.01150218,86940.0,86927.0,0.16759721]
[1769376535191,0.27697737,86939.0,86921.0,0.17676]
[1769376535393,0.28847968,86939.0,86921.0,1.40118377]
[1769376535599,0.34700768,86940.0,86915.0,1.05682656]
[1769376535600,0.16398602,86938.0,86915.0,1.05682656]
[1769376535751,0.16398602,86938.0,86905.0,0.01165711]
[1769376535752,0.0115039,86927.0,86913.0,0.16759721]
[1769376536124,0.01150364,86929.0,86913.0,0.34435721]
[1769376536324,0.07127481,86930.0,86913.0,0.34435721]
[1769376536509,0.01150364,86929.0,86913.0,0.34435721]
[1769376536953,0.01150377,86928.0,86913.0,0.34435721]
[1769376537140,0.05977131,86930.0,86913.0,0.34435721]
[1769376537339,0.07127481,86930.0,86913.0,0.34435721]
[1769376537514,0.05977131,86930.0,86913.0,0.34435721]
[1769376538354,0.07127481,86930.0,86913.0,1.40118377]
[1769376538541,0.05977131,86930.0,86913.0,1.40118377]
[1769376538748,0.07127481,86930.0,86913.0,1.40118377]
[1769376539542,0.01150364,86929.0,86913.0,1.40118377]
[1769376539975,0.05977131,86930.0,86913.0,1.40118377]
[1769376540188,0.05977131,86930.0,86913.0,1.22442377]
[1769376540414,0.10277711,86933.0,86913.0,1.05682656]
[1769376540611,0.10277711,86933.0,86914.0,0.16759721]
[1769376540927,0.16029315,86933.0,86914.0,0.16759721]
[1769376541514,0.01150337,86931.0,86915.0,0.16759721]
[1769376543150,0.06902025,86931.0,86915.0,0.16759721]
[1769376543450,0.01150364,86929.0,86915.0,0.16759721]
[1769376543684,0.01150377,86928.0,86915.0,0.16759721]
[1769376544007,0.01150364,86929.0,86915.0,0.16759721]
[1769376544204,0.01150377,86928.0,86915.0,0.16759721]
[1769376544424,0.0115035,86930.0,86915.0,0.16759721]
[1769376544623,0.01150337,86931.0,86915.0,0.16759721]
[1769376544853,0.0115035,86930.0,86915.0,0.16759721]
[1769376545455,0.0115039,86927.0,86915.0,0.16759721]
[1769376545812,0.01150377,86928.0,86915.0,0.16759721]
[1769376546083,0.01150364,86929.0,86915.0,0.16759721]
[1769376546267,0.0115039,86927.0,86915.0,0.16759721]
[1769376546884,0.01150443,86923.0,86915.0,0.16759721]
[1769376547066,0.01150469,86921.0,86909.0,1.16210008]
[1769376547271,0.01150483,86920.0,86909.0,1.32929608]
[1769376548853,0.01150589,86912.0,86902.0,0.1675407]
[1769376549024,0.01150549,86915.0,86902.0,0.1675407]
[1769376549272,0.01150562,86914.0,86902.0,0.22993796]
[1769376549443,0.01150575,86913.0,86902.0,0.22993796]
[1769376549647,0.01150562,86914.0,86902.0,0.22993796]
[1769376549648,0.01150562,86914.0,86902.0,0.1675407]
[1769376549937,0.01150549,86915.0,86902.0,0.1675407]
[1769376550364,0.01150589,86912.0,86902.0,0.1675407]
[1769376550573,0.01150575,86913.0,86902.0,0.1675407]
[1769376552237,0.01150549,86915.0,86902.0,1.32964078]
[1769376552599,0.01150562,86914.0,86902.0,0.1675407]
[1769376552805,0.01150575,86913.0,86902.0,0.1675407]
[1769376553030,0.01150589,86912.0,86902.0,0.1675407]
[1769376553432,0.01150602,86911.0,86902.0,0.16738357]
[1769376553633,0.01150589,86912.0,86902.0,0.16738357]
[1769376553831,0.01150602,86911.0,86902.0,0.16738357]
[1769376554498,0.01150615,86910.0,86902.0,0.16738357]
[1769376554672,0.01150575,86913.0,86902.0,0.16738357]
[1769376555085,0.01150589,86912.0,86902.0,0.16738357]
[1769376555606,0.01150575,86913.0,86902.0,0.16738357]
[1769376555607,0.01150549,86915.0,86902.0,0.16738357]
[1769376555807,0.01150575,86913.0,86902.0,0.16738357]
[1769376556024,0.01150562,86914.0,86902.0,0.16738357]
[1769376556591,0.01150575,86913.0,86902.0,0.16738357]
[1769376557013,0.01150589,86912.0,86902.0,0.16738357]
[1769376557417,0.01150575,86913.0,86902.0,0.16738357]
[1769376557800,0.01150589,86912.0,86902.0,0.16738357]
[1769376557982,0.01150628,86909.0,86902.0,0.16738357]
[1769376558182,0.01150615,86910.0,86902.0,0.16738357]
[1769376558497,0.01150602,86911.0,86902.0,0.16738357]
[1769376558702,0.01150589,86912.0,86902.0,0.16738357]
[1769376559455,0.01150602,86911.0,86902.0,0.16738357]
[1769376559869,0.01150602,86911.0,86902.0,0.00018757]
[1769376560206,0.23010878,86916.0,86902.0,0.00018757]
[1769376560207,0.01150562,86914.0,86902.0,0.00018757]
[1769376560437,0.01150575,86913.0,86902.0,0.00018757]
[1769376561161,0.01150589,86912.0,86902.0,0.00018757]
[1769376561384,0.01150575,86913.0,86902.0,0.00018757]
[1769376561809,0.01150536,86916.0,86902.0,0.00018757]
[1769376562068,0.01150549,86915.0,86902.0,0.00018757]
[1769376562282,0.01150562,86914.0,86902.0,0.00018757]
[1769376562844,0.01150575,86913.0,86902.0,0.00018757]
[1769376563046,0.01150562,86914.0,86902.0,0.00018757]
[1769376563449,0.01150575,86913.0,86902.0,0.00018757]
[1769376563814,0.01150562,86914.0,86902.0,0.00018757]
[1769376564296,0.01150549,86915.0,86902.0,0.00018757]
[1769376564476,0.01150575,86913.0,86902.0,0.00018757]
[1769376565043,0.01150589,86912.0,86902.0,0.00018757]
[1769376565451,0.01150575,86913.0,86902.0,0.00018757]
[1769376567181,0.01150655,86907.0,86890.0,0.0001915]
[1769376567385,0.05753387,86906.0,86890.0,0.0001915]
[1769376567599,0.00014166,86907.0,86890.0,0.0001915]
[1769376567750,0.00014166,86907.0,86892.0,1.11409314]
[1769376567969,0.00014166,86907.0,86893.0,0.17330424]
[1769376568412,0.00014166,86907.0,86894.0,0.17330424]
[1769376569891,0.00014166,86907.0,86895.0,0.17330424]
[1769376570077,0.00014166,86907.0,86895.0,0.18481238]
[1769376570286,0.00014166,86907.0,86896.0,1.11409314]
[1769376570487,0.00014166,86907.0,86893.0,0.06905011]
[1769376570488,0.01150456,86922.0,86901.0,1.11409314]
[1769376570735,0.01150456,86922.0,86897.0,0.34815805]
[1769376570736,0.01150496,86919.0,86903.0,0.17330424]
[1769376571039,0.01150509,86918.0,86903.0,0.1734459]
[1769376571464,0.01150522,86917.0,86903.0,0.1734459]
[1769376571676,0.01150536,86916.0,86903.0,0.1734459]
[1769376571850,0.01150522,86917.0,86903.0,0.1734459]
[1769376572048,0.01150509,86918.0,86903.0,0.1734459]
[1769376572371,0.01150509,86918.0,86904.0,1.11409314]
[1769376573542,0.01150522,86917.0,86904.0,1.11409314]
[1769376573975,0.01150496,86919.0,86904.0,1.11409314]
[1769376575159,0.01150509,86918.0,86904.0,1.11409314]
[1769376575359,0.01150522,86917.0,86904.0,1.11409314]
[1769376575530,0.01150509,86918.0,86904.0,1.11409314]
[1769376575927,0.01150522,86917.0,86904.0,1.11409314]
[1769376576130,0.01150509,86918.0,86904.0,1.11409314]
[1769376576367,0.01150496,86919.0,86904.0,1.11409314]
[1769376576578,0.01150456,86922.0,86904.0,1.21713927]
[1769376576772,0.1839805,86923.0,86904.0,1.21713927]
[1769376577027,0.1839805,86923.0,86904.0,1.22864622]
[1769376577220,0.1839805,86923.0,86903.0,0.01164874]
[1769376577221,0.01150311,86933.0,86914.0,0.17104612]
[1769376577421,0.16550241,86936.0,86918.0,0.17104612]
[1769376577622,0.17700512,86936.0,86921.0,1.09581567]
[1769376577833,0.06901788,86934.0,86921.0,0.17104612]
[1769376578053,0.01150284,86935.0,86921.0,0.17104612]
[1769376578054,0.05751423,86935.0,86921.0,0.17104612]
[1769376578265,0.01150297,86934.0,86921.0,0.17104612]
[1769376578454,0.01150311,86933.0,86921.0,0.17104612]
[1769376579243,0.01150324,86932.0,86921.0,0.17104612]
[1769376579436,0.01150337,86931.0,86921.0,0.17104612]
[1769376580256,0.01150324,86932.0,86921.0,0.17104612]
[1769376580542,0.01150377,86928.0,86917.0,1.09581567]
[1769376582396,0.01150364,86929.0,86917.0,1.09581567]
[1769376584105,0.3955571,86936.0,86910.0,0.35841113]
[1769376584106,0.01149967,86959.0,86934.0,1.09581567]
[1769376584316,0.01149967,86959.0,86951.0,0.15032613]
[1769376584317,0.22276,86959.0,86951.0,0.15032613]
[1769376584562,0.04604,86960.0,86954.0,1.09581567]
[1769376584767,0.04604,86960.0,86957.0,0.17104612]
[1769376585005,0.0002,86963.0,86957.0,0.1700323]
[1769376585220,0.0002,86963.0,86960.0,0.01]
[1769376585437,0.00067267,86963.0,86960.0,0.01]
[1769376585656,0.00067267,86963.0,86957.0,0.18153223]
[1769376585872,0.00067267,86963.0,86957.0,0.1700323]
[1769376587857,0.04671267,86963.0,86957.0,0.1700323]
[1769376591980,0.04671267,86963.0,86952.0,0.01150059]
[1769376592218,0.04671267,86963.0,86953.0,0.01150046]
[1769376593281,0.04671267,86963.0,86952.0,0.18254671]
[1769376593492,0.04651267,86963.0,86953.0,0.01150046]
[1769376593720,0.046,86962.0,86952.0,0.18254671]
[1769376593921,0.04614171,86962.0,86952.0,0.17104612]
[1769376595523,0.22268,86961.0,86952.0,0.17104612]
[1769376596168,0.22268,86961.0,86952.0,0.18254671]
[1769376597816,0.22268,86961.0,86952.0,0.17104612]
[1769376599034,0.22264,86960.0,86952.0,0.18254671]
[1769376599237,0.22264,86960.0,86952.0,0.17104612]
[1769376599461,0.22264,86960.0,86951.0,1.16481999]
[1769376599661,0.00014171,86962.0,86952.0,0.17104612]
[1769376599856,0.22264,86961.0,86952.0,0.17104612]
[1769376600074,0.22264,86960.0,86952.0,0.17104612]
[1769376600629,0.22264,86959.0,86952.0,0.17104612]
[1769376601612,0.00014171,86962.0,86952.0,0.17104612]
[1769376601813,0.22264,86961.0,86952.0,0.17104612]
[1769376602011,0.22264,86961.0,86950.0,0.34690498]
[1769376602428,0.83657299,86962.0,86950.0,0.34690498]
[1769376602622,0.22264,86960.0,86950.0,0.34690498]
[1769376602860,0.22264,86960.0,86945.0,0.17104612]
[1769376603005,0.22264,86960.0,86925.0,0.23008099]
[1769376603006,0.83643128,86947.0,86935.0,0.06396673]
[1769376603210,0.05751119,86940.0,86935.0,0.06396673]
[1769376603431,0.01150192,86942.0,86935.0,0.06396673]
[1769376603432,0.22264,86939.0,86935.0,0.06396673]
[1769376603635,0.22264,86939.0,86920.0,1.47568983]
[1769376603834,0.22264,86939.0,86929.0,0.34690498]
[1769376604421,0.22264,86939.0,86930.0,0.18279788]
[1769376604629,0.17664,86938.0,86932.0,1.11728002]
[1769376604840,0.17664,86937.0,86935.0,0.18279788]
[1769376605260,0.0002,86971.0,86937.0,1.12728002]
[1769376605261,0.17664,86948.0,86937.0,1.12728002]
[1769376605474,0.17664,86951.0,86939.0,0.18279788]
[1769376605938,0.17664,86951.0,86939.0,1.3000779]
[1769376606178,0.19656098,86961.0,86940.0,0.34690498]
[1769376606402,0.00014171,86962.0,86952.0,0.18279788]
[1769376606624,0.00014171,86962.0,86954.0,1.04940002]
[1769376606860,0.00014171,86962.0,86956.0,0.18279788]
[1769376607065,0.00014171,86962.0,86957.0,1.11728002]
[1769376607317,0.00014171,86962.0,86958.0,0.18279788]
[1769376610717,0.0004053,86969.0,86950.0,0.35840584]
[1769376610718,0.0004053,86969.0,86962.0,0.18293959]
[1769376611144,0.0004053,86969.0,86963.0,0.18279788]
[1769376612061,0.88913778,86978.0,86963.0,0.18279788]
[1769376614147,0.90063494,86978.0,86963.0,0.18279788]
[1769376614736,0.90063494,86978.0,86955.0,0.0115002]
[1769376614737,0.01149742,86976.0,86955.0,0.0115002]
[1769376614996,0.01149742,86976.0,86957.0,0.18279788]
[1769376615196,0.01149742,86976.0,86958.0,0.20579748]
[1769376615350,0.34690498,86970.0,86958.0,0.20579748]
[1769376615968,1.07851642,86966.0,86952.0,0.17664]
[1769376616183,0.34690498,86962.0,86952.0,0.17711267]
[1769376616582,0.01149861,86967.0,86952.0,0.17711267]
[1769376616788,0.01149887,86965.0,86952.0,0.17711267]
[1769376617020,0.01149861,86967.0,86952.0,0.17711267]
[1769376617257,0.01149874,86966.0,86952.0,0.17711267]
[1769376617487,0.01149887,86965.0,86952.0,0.17711267]
[1769376617760,0.01149861,86967.0,86952.0,0.17711267]
[1769376618061,0.01149887,86965.0,86952.0,0.17711267]
[1769376618302,0.01149861,86967.0,86952.0,0.17711267]
[1769376618502,0.01149874,86966.0,86952.0,0.17711267]
[1769376620159,0.01149887,86965.0,86952.0,0.17711267]
[1769376620355,0.53717627,86970.0,86952.0,0.17711267]
[1769376620356,0.01149861,86967.0,86952.0,0.17711267]
[1769376620559,0.01149848,86968.0,86952.0,0.17711267]
[1769376620825,0.01149848,86968.0,86952.0,0.36002823]
[1769376621007,0.01149861,86967.0,86952.0,0.36002823]
[1769376622499,0.01149874,86966.0,86952.0,0.36002823]
[1769376623436,0.01149901,86964.0,86952.0,0.36002823]
[1769376623551,0.96607568,86966.0,86952.0,0.36002823]
[1769376623759,0.90858173,86966.0,86952.0,0.36002823]
[1769376624157,0.01149901,86964.0,86952.0,0.36002823]
[1769376625220,0.0002,86952.0,86938.0,0.0002053]
[1769376625420,0.01150112,86948.0,86938.0,0.00034701]
[1769376625632,0.0690081,86947.0,86938.0,0.00034701]
[1769376625801,0.52567806,86950.0,86929.0,0.13244]
[1769376625802,0.01150192,86942.0,86929.0,0.13244]
[1769376626138,0.00014158,86942.0,86929.0,0.33757531]
[1769376626340,0.01150297,86934.0,86923.0,0.046]
[1769376626550,0.01150324,86932.0,86923.0,0.046]
[1769376626755,1.09001939,86934.0,86923.0,0.046]
[1769376626903,0.01150311,86933.0,86923.0,0.046]
[1769376627444,1.09001939,86934.0,86923.0,0.046]
[1769376627599,1.07851642,86934.0,86923.0,0.046]
[1769376628848,0.01150231,86939.0,86923.0,0.046]
[1769376629203,0.17877308,86952.0,86939.0,0.0098]
[1769376629335,0.01150099,86949.0,86940.0,0.18291556]
[1769376629548,0.01150073,86951.0,86933.0,1.15808236]
[1769376629816,0.01150073,86951.0,86934.0,0.18291556]
[1769376630033,0.01150086,86950.0,86934.0,0.18291556]
[1769376630183,0.01150112,86948.0,86934.0,0.18291556]
[1769376630553,0.01150099,86949.0,86934.0,0.18291556]
[1769376630995,0.01150125,86947.0,86934.0,0.18291556]
[1769376631195,0.0002,86934.0,86923.0,0.22891556]
[1769376631604,0.01150205,86941.0,86923.0,0.046]
[1769376631807,0.01150218,86940.0,86924.0,0.18291556]
[1769376632410,0.00014158,86942.0,86930.0,1.15808236]
[1769376632817,0.00014158,86942.0,86931.0,0.18291556]
[1769376633706,0.00014158,86942.0,86932.0,0.17689616]
[1769376635626,0.0116435,86942.0,86924.0,0.17689616]
[1769376635874,0.35840716,86940.0,86924.0,0.17689616]
[1769376636245,0.01150231,86939.0,86924.0,0.17689616]
[1769376636445,0.01150258,86937.0,86924.0,0.17689616]
[1769376636647,0.01150231,86939.0,86923.0,0.046]
[1769376636648,0.01150297,86934.0,86923.0,0.046]
[1769376636849,0.35840795,86934.0,86923.0,0.046]
[1769376637070,0.34690498,86934.0,86923.0,0.046]
[1769376637245,0.35840795,86934.0,86923.0,0.046]
[1769376637476,0.01150297,86934.0,86923.0,0.046]
[1769376637682,0.01150311,86933.0,86923.0,0.046]
[1769376637940,0.01150377,86928.0,86922.0,0.0002304]
[1769376638105,0.18954959,86927.0,86922.0,0.0002304]
[1769376638283,0.0115039,86927.0,86922.0,0.0002304]
[1769376638485,0.01150364,86929.0,86922.0,0.0002304]
[1769376639073,0.0115035,86930.0,86922.0,0.0002304]
[1769376639291,0.01150364,86929.0,86922.0,0.0002304]
[1769376639494,0.06902115,86930.0,86922.0,0.0002304]
[1769376639752,0.01150377,86928.0,86922.0,0.0002304]
[1769376640289,0.0115039,86927.0,86922.0,0.0002304]
[1769376640510,0.01150377,86928.0,86922.0,0.0002304]
[1769376640864,0.06902211,86929.0,86911.0,0.17689616]
[1769376640865,0.0115043,86924.0,86911.0,0.17689616]
[1769376641069,0.01150483,86920.0,86908.0,0.0002297]
[1769376641481,0.01150496,86919.0,86908.0,0.0002297]
[1769376642047,0.18954959,86919.0,86908.0,0.0002297]
[1769376642265,0.20105455,86919.0,86908.0,0.0002297]
[1769376642466,0.18954959,86919.0,86908.0,0.0002297]
[1769376642689,0.01150509,86918.0,86908.0,0.0002297]
[1769376643106,0.18954959,86919.0,86903.0,1.28211742]
[1769376643441,0.20105455,86919.0,86903.0,1.28211742]
[1769376643629,0.01150509,86918.0,86903.0,1.28211742]
[1769376643834,0.20105455,86919.0,86903.0,1.28211742]
[1769376644092,0.01150509,86918.0,86903.0,1.28211742]
[1769376644265,0.18954959,86919.0,86903.0,1.28211742]
[1769376644853,0.18954959,86919.0,86904.0,0.17689616]
[1769376645075,0.01150496,86919.0,86904.0,0.17689616]
[1769376645544,0.01150509,86918.0,86904.0,0.17689616]
[1769376645736,0.01150536,86916.0,86904.0,0.17689616]
[1769376646025,0.01150562,86914.0,86904.0,0.17689616]
[1769376646987,0.01150549,86915.0,86904.0,0.17689616]
[1769376647411,0.01150562,86914.0,86904.0,0.17689616]
[1769376647678,0.01150575,86913.0,86904.0,0.17689616]
[1769376648069,0.01150589,86912.0,86904.0,0.17689616]
[1769376648244,0.01150562,86914.0,86904.0,0.17689616]
[1769376648449,0.01150522,86917.0,86904.0,0.17689616]
[1769376648732,0.06903185,86917.0,86904.0,0.17689616]
[1769376649174,0.01150562,86914.0,86904.0,0.17689616]
[1769376649482,0.01150522,86917.0,86904.0,0.17689616]
[1769376649483,0.01150549,86915.0,86904.0,0.17689616]
[1769376650327,0.01150549,86915.0,86902.0,0.22268]
[1769376650533,0.73024702,86918.0,86902.0,0.22268]
[1769376650534,0.01150628,86909.0,86902.0,0.046]
[1769376650741,0.0002,86902.0,86894.0,0.0002297]
[1769376650952,1.2577705,86901.0,86884.0,0.01150959]
[1769376651159,0.0002,86902.0,86887.0,0.17689616]
[1769376651361,1.31507594,86907.0,86887.0,1.10522126]
[1769376651571,1.2575431,86907.0,86888.0,0.17689616]
[1769376651776,0.01150668,86906.0,86888.0,0.17689616]
[1769376651987,1.07950019,86906.0,86888.0,0.17689616]
[1769376652605,1.07950019,86906.0,86889.0,0.02301787]
[1769376652807,0.01150681,86905.0,86888.0,0.17689616]
[1769376653016,0.01150708,86903.0,86888.0,0.17689616]
[1769376653454,0.01150721,86902.0,86888.0,0.17689616]
[1769376653660,0.01150734,86901.0,86888.0,0.17689616]
[1769376653864,0.01150747,86900.0,86888.0,0.17689616]
[1769376654066,0.01150761,86899.0,86888.0,0.17689616]
[1769376654277,1.06799351,86904.0,86888.0,0.17689616]
[1769376654605,0.01150721,86902.0,86888.0,0.17689616]
[1769376655441,0.01150734,86901.0,86888.0,0.17689616]
[1769376655648,0.06904109,86905.0,86879.0,0.04604]
[1769376655649,1.06799351,86905.0,86879.0,0.04604]
[1769376655875,0.04007924,86935.0,86865.0,0.01151211]
[1769376655876,0.0002,86888.0,86874.0,0.17689616]
[1769376656078,0.01150933,86886.0,86874.0,0.17689616]
[1769376656293,0.20105826,86891.0,86874.0,0.17689616]
[1769376656496,0.0115092,86887.0,86874.0,0.17689616]
[1769376657389,0.01150893,86889.0,86874.0,0.17689616]
[1769376657601,0.0115092,86887.0,86872.0,1.10522126]
[1769376657804,0.18954959,86889.0,86872.0,1.10522126]
[1769376658126,0.18954959,86889.0,86872.0,1.11673244]
[1769376658345,0.18954959,86889.0,86873.0,0.18840721]
[1769376658547,1.06799351,86890.0,86873.0,0.18840721]
[1769376658773,1.06799351,86890.0,86874.0,0.01151092]
[1769376659378,0.18954959,86894.0,86879.0,1.10522126]
[1769376659590,0.011508,86896.0,86880.0,0.17689616]
[1769376659797,0.01150814,86895.0,86880.0,0.17689616]
[1769376659985,0.01150814,86895.0,86876.0,0.0003675]
[1769376659986,0.06905122,86892.0,86876.0,0.0003675]
[1769376660227,0.01150853,86892.0,86876.0,0.0003675]
[1769376660432,0.17672,86902.0,86876.0,0.0003675]
[1769376660433,0.01150893,86889.0,86876.0,0.0003675]
[1769376660595,0.01150959,86884.0,86876.0,0.0003675]
[1769376660794,1.2575431,86886.0,86876.0,0.0003675]
[1769376660996,1.26905243,86886.0,86876.0,0.0003675]
[1769376661207,0.01150959,86884.0,86876.0,0.0003675]
[1769376661550,0.01150946,86885.0,86876.0,0.0003675]
[1769376661884,1.2575431,86886.0,86876.0,0.0003675]
[1769376662335,1.26905243,86886.0,86876.0,0.0003675]
[1769376662679,0.01150946,86885.0,86876.0,0.0003675]
[1769376663109,1.2575431,86886.0,86876.0,0.0003675]
[1769376663348,0.01150893,86889.0,86876.0,0.0003675]
[1769376663674,0.0115088,86890.0,86876.0,0.0003675]
[1769376664272,0.01150853,86892.0,86876.0,0.0003675]
[1769376664633,1.25457432,86893.0,86876.0,0.0003675]
[1769376665194,0.01150853,86892.0,86876.0,0.0003675]